{"text_format":"1","workbook":"xlsx","n_sheets":4,"sheets":["Instruções","Agenda","Agendamentos","Apoio"],"not_rendered":{"charts":0,"images":0,"macros":1,"external_links":0,"defined_names":7,"comments":0,"pivot_tables":0},"unopened":[],"bounds":{"document_bytes":16777216,"sheet_cells":100000,"rows_first":2000,"rows_last":500,"rows_between":2000,"halvings":0,"cell_chars":16384,"cell_head_chars":4096},"cells_cut":0,"cells_raw":0,"read":"whole","date_system":"1900"}

{"sheet":"Instruções","index":0,"n_rows":29,"n_cols":9,"rows_kept":29,"cut":false,"hidden":false,"merged":[[15,1,15,17],[17,0,19,0],[17,1,19,17],[2,0,3,0],[2,1,2,17],[3,1,3,17],[5,0,6,0],[0,0,0,17],[5,8,6,17],[5,1,6,7],[8,1,8,17],[10,0,13,0],[10,1,13,17],[21,0,23,0],[21,1,23,17],[25,0,26,0],[25,1,26,17],[28,1,28,17]]}
["INSTRUÇÕES DE USO (LEIA ANTES DE UTILIZAR A PLANILHA)"]
[]
[1,"Antes de utilizar a planilha, é necessário habilitar as macros. Confira o passo a passo neste vídeo:"]
[null,"https://youtu.be/nOrhtwX-Oac"]
[]
[2,"Para o correto uso da planilha, confira o vídeo de demonstração:",null,null,null,null,null,null,"https://youtu.be/ILwGAoSxn8A"]
[]
[]
[3,"Para realizar agendamentos, acesse a guia Agenda e clique no botão AGENDAR HORÁRIO.\nNo formulário de agendamento, preencha os campos obrigatórios: DATA, HORÁRIO e CLIENTE. O campo TELEFONE/WHATSAPP é opcional.\nPara salvar o agendamento, clique no botão AGENDAR HORÁRIO no formulário.\n\nPara deletar um agendamento, clique no botão de exclusão (ícone de lixeira).\nSerá aberto um novo formulário. Selecione a data desejada e clique em PESQUISAR.\nA planilha apresentará todos os agendamentos para a data selecionada. Selecione o agendamento desejado e clique em DELETAR. Para excluir todos os agendamentos de uma data específica, marque a caixa \"Selecionar tudo\" e, em seguida, clique em DELETAR."]
[]
[4,"Para consultar os agendamentos, acesse a guia Agenda e selecione o ANO e MÊS e clique na data desejada no calendário. Caso haja agendamentos, a data ficará na cor verde no calendário e ao clicar nela, serão mostrados os agendamentos na lista à esquerda do calendário em seus respectivos horários."]
[]
[]
[]
[]
[5,"Importante: A guia Agendamentos funciona como um banco de dados para armazenar os registros salvos pelo formulário. Não faça inclusões, exclusões ou alterações de agendamentos nessa guia. Qualquer alteração deve ser feita exclusivamente através do formulário de agendamento.\n\nA lista de Agendamentos do dia localizada na guia Agenda contém fórmulas que não devem ser deletadas ou editadas. Qualquer alteração acidental na planilha, recomendamos que baixe a versão original em nosso site."]
[]
[6,"A Planilha é 100% editável e você poderá realizar qualquer alteração que desejar. Apenas é necessário conhecimentos nos recursos utilizados na criação da planilha como, por exemplo, fórmulas e programação VBA.\nImportante: Não realizamos ajustes em nossas planilhas e, neste caso, qualquer alteração é de responsabilidade do usuário da planilha."]
[]
[]
[]
[7,"Este modelo de Planilha foi desenvolvido e testado no Microsoft Excel para Windows. Não garantimos a compatibilidade com o Excel para MAC, Google Sheets, Excel para celular ou tablet, ou qualquer outro software de Planilhas que não seja o Microsoft Excel para Windows.\t"]
[]
[]
[]
[8,"A Planilha de Agendamento de Clientes é comercializada exclusivamente no site oficial do desenvolvedor. A compra deste modelo não lhe garante o direito de comercializá-la ou distribuí-la em outros sites. Qualquer violação de direitos autorais, será respondida judicialmente."]
[]
[]
[9,"Caso tenha alguma dúvida, basta nos contatar através do e-mail contato@exceleasy.com.br ou através do WhatsApp: +55 (19) 99735-8062\t\t\t\t\t\t\t\t\t\t\t\t\t\t\t\t\t\t\t\t"]

{"sheet":"Agenda","index":1,"n_rows":35,"n_cols":12,"rows_kept":35,"cut":false,"hidden":false,"merged":[[1,5,1,7],[2,5,2,7],[0,0,0,2],[4,11,5,11],[4,5,5,5],[4,6,5,6],[4,7,5,7],[4,8,5,8],[4,9,5,9],[4,10,5,10],[8,8,9,8],[8,9,9,9],[8,10,9,10],[10,9,11,9],[10,10,11,10],[10,11,11,11],[6,5,7,5],[6,6,7,6],[6,7,7,7],[6,8,7,8],[6,9,7,9],[6,10,7,10],[6,11,7,11],[8,5,9,5],[8,6,9,6],[8,11,9,11],[10,5,11,5],[10,6,11,6],[10,7,11,7],[10,8,11,8],[8,7,9,7],[20,5,21,11],[0,5,0,11],[12,11,13,11],[14,5,15,5],[14,6,15,6],[14,7,15,7],[14,8,15,8],[14,9,15,9],[14,10,15,10],[14,11,15,11],[12,5,13,5],[12,6,13,6],[12,7,13,7],[12,8,13,8],[12,9,13,9],[12,10,13,10]]}
[{"$f":"CONCATENATE(\"Agendamentos \",TEXT(data,\"dd/mm/aaaa\"))","v":"Agendamentos 05/06/2023"},null,null,null,null,{"$f":"CONCATENATE(COUNTA(B3:B35)-COUNTBLANK(B3:B35),\"  Agendamento(s)\",\" em \",TEXT(data,\"dd/mm/aaaa\"))","v":"0  Agendamento(s) em 05/06/2023"}]
["Horário","Cliente","Telefone / WhatsApp",null,null,"ANO",null,null,"2023-06-05",2,{"$f":"INDEX(anos,J2)","v":2023},{"$f":"DATE(K2,MATCH(K3,meses,0),1)","v":"2023-06-01"}]
["06:00",{"$f":"IFERROR(VLOOKUP(CONCATENATE(TEXT(data,\"dd/mm/aaaa\"),TEXT(A3,\"hh:mm\")),TabelaAgendamentos,4,0),\"\")","v":""},{"$f":"IFERROR(VLOOKUP(CONCATENATE(TEXT(data,\"dd/mm/aaaa\"),TEXT(A3,\"hh:mm\")),TabelaAgendamentos,5,0),\"\")","v":""},null,null,"MÊS",null,null,null,6,{"$f":"INDEX(meses,J3)","v":"Junho"},{"$f":"WEEKDAY(L2,1)","v":5}]
["06:30","","",null,null,"D","S","T","Q","Q","S","S"]
["07:00","","",null,null,{"$f":"(L2-L3)+1","v":"2023-05-28"},{"$f":"F5+1","v":"2023-05-29"},{"$f":"G5+1","v":"2023-05-30"},{"$f":"H5+1","v":"2023-05-31"},{"$f":"I5+1","v":"2023-06-01"},"2023-06-02","2023-06-03"]
["07:30","",""]
["08:00","","",null,null,{"$f":"L5+1","v":"2023-06-04"},{"$f":"F7+1","v":"2023-06-05"},{"$f":"G7+1","v":"2023-06-06"},"2023-06-07","2023-06-08","2023-06-09",{"$f":"K7+1","v":"2023-06-10"}]
["08:30","",""]
["09:00","","",null,null,{"$f":"L7+1","v":"2023-06-11"},{"$f":"F9+1","v":"2023-06-12"},"2023-06-13","2023-06-14","2023-06-15","2023-06-16","2023-06-17"]
["09:30","",""]
["10:00","","",null,null,{"$f":"L9+1","v":"2023-06-18"},{"$f":"F11+1","v":"2023-06-19"},"2023-06-20","2023-06-21","2023-06-22","2023-06-23","2023-06-24"]
["10:30","",""]
["11:00","","",null,null,{"$f":"L11+1","v":"2023-06-25"},{"$f":"F13+1","v":"2023-06-26"},"2023-06-27","2023-06-28","2023-06-29","2023-06-30","2023-07-01"]
["11:30","",""]
["12:00","","",null,null,{"$f":"L13+1","v":"2023-07-02"},{"$f":"F15+1","v":"2023-07-03"},"2023-07-04","2023-07-05","2023-07-06","2023-07-07","2023-07-08"]
["12:30","",""]
["13:00","",""]
["13:30","",""]
["14:00","",""]
["14:30",{"$f":"IFERROR(VLOOKUP(CONCATENATE(TEXT(data,\"dd/mm/aaaa\"),TEXT(A20,\"hh:mm\")),TabelaAgendamentos,4,0),\"\")","v":""},{"$f":"IFERROR(VLOOKUP(CONCATENATE(TEXT(data,\"dd/mm/aaaa\"),TEXT(A20,\"hh:mm\")),TabelaAgendamentos,5,0),\"\")","v":""}]
["15:00","",""]
["15:30","",""]
["16:00","",""]
["16:30","",""]
["17:00","",""]
["17:30","",""]
["18:00","",""]
["18:30","",""]
["19:00","",""]
["19:30","",""]
["20:00",{"$f":"IFERROR(VLOOKUP(CONCATENATE(TEXT(data,\"dd/mm/aaaa\"),TEXT(A31,\"hh:mm\")),TabelaAgendamentos,4,0),\"\")","v":""},{"$f":"IFERROR(VLOOKUP(CONCATENATE(TEXT(data,\"dd/mm/aaaa\"),TEXT(A31,\"hh:mm\")),TabelaAgendamentos,5,0),\"\")","v":""}]
["20:30","",""]
["21:00","",""]
["21:30","",""]
["22:00","",""]

{"sheet":"Agendamentos","index":2,"n_rows":1,"n_cols":5,"rows_kept":1,"cut":false,"hidden":false,"merged":[]}
["ID de Agendamento","Data","Horário","Cliente","Telefone"]

{"sheet":"Apoio","index":3,"n_rows":19,"n_cols":2,"rows_kept":19,"cut":false,"hidden":true,"merged":[]}
[2022,"Janeiro"]
[2023,"Fevereiro"]
[2024,"Março"]
[2025,"Abril"]
[2026,"Maio"]
[2027,"Junho"]
[2028,"Julho"]
[2029,"Agosto"]
[2030,"Setembro"]
[2031,"Outubro"]
[2032,"Novembro"]
[2033,"Dezembro"]
[2034]
[2035]
[2036]
[2037]
[2038]
[2039]
[2040]